bitfinex-derivatives/quotes_SOLF0:USTF0_20250530
["timestamp","ask_amount","ask_price","bid_price","bid_amount"]
[1748611428283,38.6202,161.68,161.61,36.5]
[1748611428584,44.8036,161.68,161.61,36.5]
[1748611428974,0.04191062,161.66,161.64,6.1846]
[1748611429187,0.04191062,161.66,161.63,0.04462191]
[1748611429684,0.04191062,161.66,161.65,6.1844]
[1748611430175,0.04191062,161.66,161.63,0.04462191]
[1748611430786,0.04191062,161.66,161.64,6.1844]
[1748611431082,0.04191062,161.66,161.63,0.04462191]
[1748611432188,6.22621062,161.66,161.63,0.04462191]
[1748611432381,0.04191062,161.66,161.63,0.04462191]
[1748611432677,6.1847,161.65,161.63,0.04462191]
[1748611433887,0.04191062,161.66,161.63,0.04462191]
[1748611434384,0.04191062,161.66,161.57,36.5]
[1748611434581,0.04191062,161.66,161.57,42.6872]
[1748611434781,0.04191062,161.66,161.57,36.5]
[1748611434984,6.1863,161.61,161.57,36.5]
[1748611435182,36.52,161.64,161.57,36.5]
[1748611435377,0.04335403,161.62,161.59,0.04365482]
[1748611436971,6.1861,161.61,161.59,0.04365482]
[1748611437183,0.04335403,161.62,161.59,0.04365482]
[1748611438784,0.04335403,161.62,161.6,6.1861]
[1748611439595,0.04335403,161.62,161.61,6.186]
[1748611440286,0.04335403,161.62,161.6,6.1862]
[1748611440494,0.04335403,161.62,161.59,0.04365482]
[1748611440692,6.1862,161.61,161.59,0.04365482]
[1748611441497,6.1863,161.6,161.59,0.04365482]
[1748611441688,0.04335403,161.62,161.53,182.43678959]
[1748611441979,6.1883,161.55,161.53,36.52]
[1748611442180,6.1883,161.55,161.51,6.1687]
[1748611442379,6.1883,161.55,161.52,6.1891]
[1748611442581,6.1881,161.56,161.51,6.1687]
[1748611442782,0.0434828,161.55,161.51,6.1687]
[1748611443071,0.0434828,161.55,161.52,6.1891]
[1748611443667,6.2317828,161.55,161.52,6.1891]
[1748611443867,0.0434828,161.55,161.51,10.2181]
[1748611444060,0.0434828,161.55,161.51,4.0284]
[1748611444570,0.0434828,161.55,161.52,6.1891]
[1748611445157,0.0434828,161.55,161.53,6.1889]
[1748611445357,0.0434828,161.55,161.51,4.0284]
[1748611445558,36.52,161.6,161.51,4.0284]
[1748611445559,6.1855,161.63,161.54,17.77178565]
[1748611445763,36.06,161.65,161.55,38.1482]
[1748611446158,36.06,161.65,161.56,128.22]
[1748611446365,36.06,161.65,161.58,17.77178565]
[1748611446567,0.04411003,161.63,161.6,0.04409392]
[1748611446765,36.06,161.7,161.6,0.03960849]
[1748611447065,6.1833,161.68,161.59,38.1884]
[1748611447269,36.06,161.7,161.59,38.1884]
[1748611447465,36.06,161.7,161.62,17.77178565]
[1748611447768,539.17449,161.74,161.64,0.04316118]
[1748611447769,0.04582392,161.68,161.64,0.04316118]
[1748611447968,0.04582392,161.68,161.64,0.03973363]
[1748611448270,0.04582392,161.68,161.65,6.1844]
[1748611448466,0.04582392,161.68,161.64,0.03973363]
[1748611448667,6.22922392,161.68,161.64,0.03973363]
[1748611448867,0.04582392,161.68,161.64,0.03973363]
[1748611449269,0.04582392,161.68,161.65,6.1843]
[1748611449461,0.04582392,161.68,161.64,0.03973363]
[1748611449862,0.04582392,161.68,161.67,6.1837]
[1748611452175,0.04582392,161.68,161.64,19.98111928]
[1748611453466,0.04582392,161.68,161.67,6.1837]
[1748611454067,40.95449,161.74,161.64,17.81151928]
[1748611454268,4.89449,161.74,161.65,132.1842]
[1748611454478,4.89449,161.74,161.68,17.77178565]
[1748611454680,4.89449,161.74,161.72,6.1816]
[1748611455077,4.89449,161.74,161.71,6.1821]
[1748611455276,4.94071783,161.74,161.71,6.22499225]
[1748611455479,4.94071783,161.74,161.71,0.04289225]
[1748611455876,4.94071783,161.74,161.72,6.1817]
[1748611456973,4.94071783,161.74,161.73,6.1814]
[1748611461880,4.94071783,161.74,161.71,0.04289225]
[1748611462477,4.94071783,161.74,161.72,6.1815]
[1748611462678,4.94071783,161.74,161.71,0.04289225]
[1748611463778,4.94071783,161.74,161.73,6.1814]
[1748611464684,4.94071783,161.74,161.71,0.04289225]
[1748611465478,11.12191783,161.74,161.71,0.04289225]
[1748611465780,4.94071783,161.74,161.71,0.04289225]
[1748611465982,4.94071783,161.74,161.71,6.22489225]
[1748611467389,4.94071783,161.74,161.72,6.1817]
[1748611467591,4.94071783,161.74,161.71,0.04289225]
[1748611468086,4.94071783,161.74,161.73,6.1814]
[1748611475483,4.94071783,161.74,161.71,0.04289225]
[1748611475892,4.94071783,161.74,161.72,6.1814]
[1748611477691,4.94071783,161.74,161.73,6.1813]
[1748611478490,36.04,161.79,161.74,6.1808]
[1748611478890,42.2193,161.79,161.74,6.1808]
[1748611479588,0.04370562,161.78,161.75,0.04081259]
[1748611481091,0.04370562,161.78,161.77,6.1798]
[1748611481290,0.04370562,161.78,161.75,0.04081259]
[1748611481793,0.04370562,161.78,161.76,6.18]
[1748611485799,0.04370562,161.78,161.77,6.1798]
[1748611486001,0.04370562,161.78,161.75,0.04081259]
[1748611487095,35.58370562,161.78,161.75,0.04081259]
[1748611487296,6.1811,161.74,161.7,6.1822]
[1748611487798,6.1808,161.75,161.71,6.1819]
[1748611488199,0.04629945,161.75,161.71,0.04097027]
[1748611488797,6.181,161.74,161.71,0.04097027]
[1748611489704,6.22699945,161.75,161.71,0.04097027]
[1748611490205,6.1809,161.74,161.71,0.04097027]
[1748611491305,0.04629945,161.75,161.71,0.04097027]
[1748611491605,0.04629945,161.75,161.73,10.65834142]
[1748611492497,0.04629945,161.75,161.74,6.1809]
[1748611493000,0.04629945,161.75,161.73,16.83944142]
[1748611494301,0.04629945,161.75,161.73,10.65834142]
[1748611495101,0.04629945,161.75,161.73,16.83944142]
[1748611495306,0.04629945,161.75,161.73,6.1811]
[1748611496016,0.04629945,161.75,161.72,10.65834142]
[1748611496812,0.04629945,161.75,161.73,6.1811]
[1748611497113,0.04629945,161.75,161.72,10.65834142]
[1748611497607,0.04629945,161.75,161.73,6.1813]
[1748611497914,0.04629945,161.75,161.72,10.65834142]
[1748611498314,0.04629945,161.75,161.74,6.1809]
[1748611498609,0.04629945,161.75,161.72,10.65834142]
[1748611498810,0.04629945,161.75,161.71,35.58097027]
[1748611499019,0.04629945,161.75,161.72,6.1815]
[1748611499315,0.04629945,161.75,161.71,35.58097027]
[1748611499711,0.04629945,161.75,161.73,6.1813]
[1748611500312,6.22629945,161.75,161.62,35.54]
[1748611500629,3.9264,161.74,161.62,35.54]
[1748611500916,16.70544142,161.74,161.62,35.54]
[1748611501417,0.04186426,161.7,161.66,0.04315411]
[1748611502011,0.04186426,161.7,161.67,6.1833]
[1748611502211,0.04186426,161.7,161.66,0.04315411]
[1748611502715,35.54,161.69,161.58,37.5611]
[1748611503017,35.54,161.69,161.61,6.1855]
[1748611503205,35.54,161.69,161.61,10.65834142]
[1748611503612,35.54,161.69,161.61,6.1857]
[1748611503816,6.185,161.64,161.63,0.04206565]
[1748611504013,0.04115163,161.67,161.63,0.04206565]
[1748611504319,4.35925163,161.67,161.63,0.04206565]
[1748611504821,6.1846,161.65,161.63,0.04206565]
[1748611505314,4.35925163,161.67,161.63,0.04206565]
[1748611506212,6.1846,161.65,161.63,0.04206565]
[1748611507112,6.1847,161.64,161.63,0.04206565]
[1748611507814,4.35925163,161.67,161.63,0.04206565]
[1748611508007,39.23925163,161.67,161.63,0.04206565]
[1748611509219,6.1846,161.65,161.63,0.04206565]
[1748611509517,39.23925163,161.67,161.63,0.04206565]
[1748611509710,6.1855,161.62,161.58,41.7268]
[1748611509911,6.1855,161.62,161.58,6.1868]
[1748611510312,39.1981,161.67,161.57,10.65834142]
[1748611510812,6.1851,161.63,161.6,0.02240338]
[1748611511817,0.0411619,161.64,161.6,6.20860338]
[1748611512116,0.0411619,161.64,161.6,0.02240338]
[1748611512511,6.2261619,161.64,161.6,0.02240338]
[1748611512713,0.0411619,161.64,161.6,0.02240338]
[1748611513719,6.2261619,161.64,161.6,0.02240338]
[1748611514021,0.0411619,161.64,161.6,0.02240338]
[1748611514218,6.2260619,161.64,161.6,0.02240338]
[1748611514913,0.0411619,161.64,161.6,0.02240338]
[1748611515419,0.0411619,161.64,161.61,6.1859]
[1748611515817,0.0411619,161.64,161.6,0.02240338]
[1748611516422,41.2019,161.73,161.62,10.65834142]
[1748611516619,39.0641,161.73,161.65,10.65834142]
[1748611516817,36.9671,161.73,161.65,10.65834142]
[1748611517020,6.1819,161.72,161.67,6.1834]
[1748611517218,34.9,161.76,161.67,6.1834]
[1748611517418,34.9,161.76,161.7,0.04180893]
[1748611517419,0.04645616,161.73,161.7,0.04180893]
[1748611517614,6.1819,161.72,161.7,0.04180893]
[1748611517820,0.04645616,161.73,161.7,0.04180893]
[1748611518219,6.22795616,161.73,161.7,0.04180893]
[1748611518419,0.04645616,161.73,161.7,0.04180893]
[1748611518723,6.182,161.71,161.7,0.04180893]
[1748611519023,0.04645616,161.73,161.7,0.04180893]
[1748611519219,6.182,161.71,161.7,0.04180893]
[1748611519722,34.9,161.72,161.65,10.65834142]
[1748611520027,6.1831,161.69,161.65,6.1841]
[1748611520425,6.1831,161.69,161.63,36.9703]
[1748611520725,0.0437844,161.68,161.64,0.02175635]
[1748611521623,0.0437844,161.68,161.66,10.65834142]
[1748611521820,34.9,161.75,161.66,10.65834142]
[1748611522016,6.181,161.74,161.69,6.1826]
[1748611522424,34.9,161.75,161.69,6.1826]
[1748611522721,34.9,161.75,161.7,0.04314903]
[1748611522722,6.1815,161.73,161.7,0.04314903]
[1748611523826,6.1817,161.72,161.7,0.04314903]
[1748611524624,6.182,161.71,161.7,0.04314903]
[1748611525022,0.03943954,161.74,161.7,0.04314903]
[1748611525230,6.1818,161.72,161.7,0.04314903]
[1748611525425,0.03943954,161.74,161.7,0.04314903]
[1748611526529,6.1815,161.73,161.7,6.22534903]
[1748611526732,6.1815,161.73,161.7,0.04314903]
[1748611526935,0.03943954,161.74,161.7,0.04314903]
[1748611527123,6.22043954,161.74,161.7,6.22534903]
[1748611528425,6.22043954,161.74,161.71,6.1819]
[1748611528426,0.03943954,161.74,161.71,6.1819]
[1748611528622,34.88,161.79,161.7,0.04314903]
[1748611528936,34.88,161.79,161.71,34.88]
[1748611529125,10.65834142,161.78,161.69,34.88]
[1748611529528,6.1811,161.74,161.69,41.0625]
[1748611529733,0.04660107,161.73,161.7,0.04013628]
[1748611530928,6.182,161.71,161.7,0.04013628]
[1748611541143,6.1818,161.72,161.7,0.04013628]
[1748611541341,0.04660107,161.73,161.7,0.04013628]
[1748611541738,6.1795,161.78,161.7,0.04013628]
[1748611541936,35.14,161.81,161.7,0.04013628]
[1748611542145,6.1787,161.8,161.76,6.18]
[1748611542349,1.9623,161.82,161.76,6.18]
[1748611542748,0.04233992,161.81,161.77,6.22236677]
[1748611542940,0.04233992,161.81,161.77,0.04296677]
[1748611543248,0.04233992,161.81,161.78,6.1793]
[1748611543448,0.04233992,161.81,161.77,0.04296677]
[1748611543639,6.22053992,161.81,161.77,0.04296677]
[1748611544450,0.04233992,161.81,161.77,6.22246677]
[1748611544644,0.04233992,161.81,161.77,0.04296677]
[1748611545045,6.1793,161.78,161.77,0.04296677]
[1748611545244,0.04233992,161.81,161.77,0.04296677]
[1748611546043,6.22083992,161.81,161.77,0.04296677]
[1748611546955,6.1786,161.8,161.77,0.04296677]
[1748611547151,0.04233992,161.81,161.77,0.04296677]
[1748611547656,6.1792,161.79,161.77,0.04296677]
[1748611549157,6.1793,161.78,161.77,0.04296677]
[1748611549455,0.04233992,161.81,161.77,0.04296677]
[1748611549658,6.1793,161.78,161.77,0.04296677]
[1748611549953,0.04233992,161.81,161.77,0.04296677]
[1748611550153,6.1792,161.79,161.77,0.04296677]
[1748611550946,6.1793,161.78,161.77,0.04296677]
[1748611551152,0.04233992,161.81,161.71,35.12]
[1748611551449,4.1268,161.83,161.71,35.12]
[1748611551651,6.1798,161.77,161.74,6.1807]
[1748611552048,21.89523961,161.83,161.71,35.12]
[1748611552356,21.89523961,161.83,161.6,17.76843961]
[1748611552357,17.81194521,161.79,161.65,534.06]
[1748611552558,2.157,161.78,161.65,569.18]
[1748611552760,2.157,161.78,161.7,6.1824]
[1748611553066,2.157,161.78,161.65,569.18]
[1748611553355,0.03955353,161.73,161.7,0.04237597]
[1748611554354,6.182,161.71,161.7,0.04237597]
[1748611555453,6.1842,161.66,161.62,35.12]
[1748611555963,2.0384,161.73,161.62,35.12]
[1748611556359,6.1845,161.65,161.62,35.12]
[1748611556762,6.2314784,161.65,161.62,35.14022654]
[1748611557258,6.1847,161.64,161.62,35.14022654]
[1748611557654,0.0469784,161.65,161.62,35.14022654]
[1748611557855,6.1847,161.64,161.62,35.14022654]
[1748611559064,6.1851,161.63,161.62,35.14022654]
[1748611559462,6.1851,161.63,161.62,0.02022654]
[1748611559765,6.1849,161.64,161.62,0.02022654]
[1748611560563,6.1851,161.63,161.62,0.02022654]
[1748611560770,0.0469784,161.65,161.55,35.14]
[1748611560963,35.14,161.67,161.55,35.14]
[1748611561163,4.2638,161.66,161.55,35.14]
[1748611561866,0.04554084,161.62,161.55,35.14]
[1748611562260,6.1873,161.58,161.55,35.14]
[1748611562462,0.04036961,161.58,161.55,35.14]
[1748611562961,2.043,161.7,161.55,35.14]
[1748611563160,37.183,161.7,161.55,35.14]
[1748611563368,37.183,161.7,161.55,52.90843961]
[1748611564065,0.04519813,161.64,161.61,0.04036961]
[1748611564567,6.23019813,161.64,161.61,0.04036961]
[1748611565463,6.1852,161.63,161.61,0.04036961]
[1748611565866,0.04519813,161.64,161.61,0.04036961]
[1748611566172,6.23009813,161.64,161.61,0.04036961]
[1748611566869,0.04519813,161.64,161.61,0.04036961]
[1748611567060,35.22,161.73,161.61,4.02656961]
[1748611567261,35.22,161.73,161.62,126.92]
[1748611567462,6.1834,161.68,161.62,126.92]
[1748611567763,6.1834,161.68,161.64,6.1847]
[1748611567965,6.2294804,161.68,161.64,35.26088204]
[1748611568366,0.0459804,161.68,161.64,35.26088204]
[1748611568772,0.0459804,161.68,161.65,6.1841]
[1748611569164,0.0459804,161.68,161.64,35.26088204]
[1748611570166,0.0459804,161.68,161.67,6.1836]
[1748611570373,0.0459804,161.68,161.64,35.26088204]
[1748611570674,0.0459804,161.68,161.67,6.1835]
[1748611570972,35.22,161.73,161.64,35.26088204]
[1748611571274,6.1816,161.72,161.64,35.26088204]
[1748611571671,569.2,161.76,161.64,35.26088204]
[1748611571876,569.2,161.76,161.7,6.1823]
[1748611571877,6.1812,161.74,161.7,6.1823]
[1748611572171,0.04644948,161.74,161.7,0.04173969]
[1748611572576,0.04644948,161.74,161.71,6.1818]
[1748611574572,0.04644948,161.74,161.7,0.04173969]
[1748611574872,0.04644948,161.74,161.73,6.1813]
[1748611576269,0.04644948,161.74,161.72,35.2]
[1748611576463,0.04644948,161.74,161.71,6.1818]
[1748611576864,0.04644948,161.74,161.7,0.04173969]
[1748611577269,0.04644948,161.74,161.71,6.182]
[1748611577470,0.04644948,161.74,161.7,0.04173969]
[1748611577774,0.04644948,161.74,161.73,6.1813]
[1748611579977,6.1791,161.79,161.76,6.1801]
[1748611580674,6.1788,161.8,161.76,6.1801]
[1748611580970,6.1788,161.8,161.76,0.04149292]
[1748611580971,0.04439579,161.8,161.76,0.04149292]
[1748611581375,0.04439579,161.8,161.78,6.179]
[1748611582372,0.04439579,161.8,161.77,6.1796]
[1748611582573,0.04439579,161.8,161.76,0.04149292]
[1748611582984,0.04439579,161.8,161.77,6.1795]
[1748611583278,0.04439579,161.8,161.76,0.04149292]
[1748611583477,6.22319579,161.8,161.77,6.1797]
[1748611583675,0.04439579,161.8,161.76,0.04149292]
[1748611583878,35.2,161.79,161.69,35.2]
[1748611584083,4.0337,161.78,161.7,6.1822]
[1748611584477,6.1811,161.74,161.66,161.82]
[1748611584670,6.1811,161.74,161.71,6.1818]
[1748611584870,6.2254838,161.74,161.71,6.22892244]
[1748611585680,6.2254838,161.74,161.72,6.1816]
[1748611585883,6.2254838,161.74,161.71,0.04712244]
[1748611586482,6.1813,161.73,161.71,0.04712244]
[1748611586682,0.0443838,161.74,161.71,0.04712244]
[1748611586892,6.1816,161.72,161.71,0.04712244]
[1748611587772,0.0443838,161.74,161.63,35.2]
[1748611587982,17.76843961,161.73,161.63,35.2]
[1748611588582,6.1834,161.68,161.64,6.1843]
[1748611588783,0.04276355,161.68,161.64,0.04199946]
[1748611590184,0.04276355,161.68,161.66,6.1837]
[1748611590378,0.04276355,161.68,161.64,0.04199946]
[1748611591788,0.04276355,161.68,161.67,6.1836]
[1748611593381,0.04276355,161.68,161.64,0.04199946]
[1748611593989,6.1842,161.66,161.64,0.04199946]
[1748611594381,0.04276355,161.68,161.64,0.04199946]
[1748611595090,6.1838,161.67,161.64,6.22659946]
[1748611595285,0.04276355,161.68,161.64,0.04199946]
[1748611595685,35.2,161.67,161.56,35.2]
[1748611595891,2.0243,161.66,161.56,35.2]
[1748611596783,6.1857,161.62,161.59,0.04102527]
[1748611597183,0.0407524,161.63,161.59,0.04102527]
[1748611597388,0.0407524,161.63,161.62,6.1855]
[1748611597590,0.0407524,161.63,161.59,0.04102527]
[1748611597892,6.2261524,161.63,161.6,6.1862]
[1748611598479,0.0407524,161.63,161.59,0.04102527]
[1748611598893,0.0407524,161.63,161.6,6.1862]
[1748611599185,0.0407524,161.63,161.59,0.04102527]
[1748611599579,6.2258524,161.63,161.6,6.186]
[1748611599888,0.0407524,161.63,161.6,6.186]
[1748611600191,0.0407524,161.63,161.59,0.04102527]
[1748611600592,0.0407524,161.63,161.61,6.1857]
[1748611600987,0.0407524,161.63,161.59,0.04102527]
[1748611601197,34.9807524,161.63,161.59,0.04102527]
[1748611601591,6.1862,161.6,161.59,0.04102527]
[1748611601991,3.9487,161.62,161.59,0.04102527]
[1748611602191,34.9807524,161.63,161.59,0.04102527]
[1748611602594,0.0407524,161.63,161.59,0.04102527]
[1748611602794,0.0407524,161.63,161.62,6.1855]
[1748611603692,0.0407524,161.63,161.61,6.1858]
[1748611603994,0.0407524,161.63,161.59,128.73992527]
[1748611604295,0.0407524,161.63,161.62,6.1855]
[1748611606096,0.0407524,161.63,161.61,6.1857]
[1748611606403,0.0407524,161.63,161.59,128.73992527]
[1748611607188,0.0407524,161.63,161.62,6.1855]
[1748611607391,34.94,161.69,161.6,17.76843961]
[1748611607690,34.94,161.69,161.6,19.85613961]
[1748611607894,6.1832,161.68,161.6,19.85613961]
[1748611608094,6.1832,161.68,161.6,2.0877]
[1748611608292,34.94,161.69,161.6,2.0877]
[1748611608496,0.04715632,161.66,161.63,0.04747734]
[1748611608894,0.04715632,161.66,161.65,6.1843]
[1748611609094,37.0838,161.73,161.63,0.04747734]
[1748611609405,37.0838,161.73,161.62,34.94]
[1748611609606,6.1818,161.72,161.68,6.183]
[1748611609998,6.22375989,161.72,161.68,6.22224964]
[1748611610199,0.04195989,161.72,161.68,0.03924964]
[1748611610799,6.1823,161.71,161.68,0.03924964]
[1748611611800,6.1825,161.7,161.68,0.03924964]
[1748611612002,0.04195989,161.72,161.68,0.03924964]
[1748611612602,0.04195989,161.72,161.7,6.1822]
[1748611613106,0.04195989,161.72,161.68,0.03924964]
[1748611613305,0.04195989,161.72,161.69,6.1827]
[1748611613506,0.04195989,161.72,161.68,0.03924964]
[1748611614103,0.04195989,161.72,161.69,6.1827]
[1748611614408,0.04195989,161.72,161.68,0.03924964]
[1748611614810,0.04195989,161.72,161.69,6.1826]
[1748611615111,0.04195989,161.72,161.68,0.03924964]
[1748611615501,0.04195989,161.72,161.68,6.22224964]
[1748611615701,0.04195989,161.72,161.68,0.03924964]
[1748611616601,6.22375989,161.72,161.69,6.1827]
[1748611617001,0.04195989,161.72,161.71,6.182]
[1748611617400,33.60215034,161.85,161.7,34.94]
[1748611617401,34.94,161.8,161.7,34.94]
[1748611617607,6.1792,161.79,161.7,34.94]
[1748611618005,6.1784,161.81,161.78,6.1793]
[1748611618603,6.22480126,161.81,161.78,0.04107804]
[1748611619305,0.04640126,161.81,161.78,0.04107804]
[1748611620702,6.179,161.79,161.78,0.04107804]
[1748611621511,0.04640126,161.81,161.78,0.04107804]
[1748611622405,6.179,161.79,161.78,0.04107804]
[1748611622709,0.04640126,161.81,161.71,34.94]
[1748611622911,34.94,161.82,161.73,6.1811]
[1748611623207,34.94,161.82,161.71,34.94]
[1748611623405,6.1808,161.75,161.71,41.1217]
[1748611623609,0.04356842,161.75,161.71,41.16492388]
[1748611624111,6.1809,161.74,161.71,41.16492388]
[1748611624311,6.1809,161.74,161.72,6.1816]
[1748611624507,0.04356842,161.75,161.71,0.04322388]
[1748611625110,6.1811,161.74,161.71,0.04322388]
[1748611625410,0.04356842,161.75,161.71,0.04322388]
[1748611627110,6.22436842,161.75,161.72,6.1816]
[1748611629112,6.181,161.74,161.71,6.22512388]
[1748611630016,6.1814,161.73,161.71,0.04322388]
[1748611630215,0.04356842,161.75,161.71,0.04322388]
[1748611630411,35.44,161.74,161.62,2.0656]
[1748611630605,35.44,161.74,161.63,35.44]
[1748611631112,35.44,161.74,161.69,6.1826]
[1748611631113,6.1818,161.72,161.69,6.1826]
[1748611631516,6.22658214,161.72,161.69,6.22533075]
[1748611632018,35.44,161.81,161.69,0.04273075]
[1748611632213,35.44,161.81,161.7,2.0793]
[1748611632514,6.1231,161.8,161.69,4.25]
[1748611633118,0.04392984,161.76,161.73,0.04375116]
[1748611633315,35.48392984,161.76,161.73,0.04375116]
[1748611633516,6.1809,161.74,161.73,0.04375116]
[1748611634314,6.1819,161.72,161.68,35.44]
[1748611634516,35.44,161.76,161.67,6.1833]
[1748611634917,6.1822,161.71,161.67,6.1833]
[1748611635114,35.44,161.76,161.64,35.44]
[1748611635513,1.249e-05,161.72,161.71,6.182]
[1748611635815,35.44,161.84,161.71,35.44]
[1748611636014,35.44,161.84,161.73,17.76843961]
[1748611636613,0.04466835,161.8,161.77,6.21861311]
[1748611636913,0.04466835,161.8,161.77,0.03921311]
[1748611638221,0.04466835,161.8,161.79,6.179]
[1748611638520,6.1769,161.85,161.79,6.179]
[1748611638711,6.1948,161.87,161.76,53.20843961]
[1748611638921,35.44,161.92,161.8,17.76843961]
[1748611639120,35.44,161.92,161.81,39.4806]
[1748611639416,0.04019737,161.88,161.85,0.04078919]
[1748611639817,6.1763,161.86,161.85,0.04078919]
[1748611640410,0.04019737,161.88,161.62,417.09152965]
[1748611640616,35.44,161.87,161.73,17.76843961]
[1748611640917,41.7686,161.86,161.76,6.1798]
[1748611641119,6.1785,161.81,161.76,6.1798]
[1748611641623,0.03928224,161.8,161.77,0.04000767]
[1748611642322,6.1794,161.78,161.77,0.04000767]
[1748611646521,6.1791,161.79,161.77,0.04000767]
[1748611646915,0.03928224,161.8,161.77,0.04000767]
[1748611647324,0.03928224,161.8,161.78,6.1793]
[1748611648624,0.03928224,161.8,161.77,6.21960767]
[1748611649121,0.03928224,161.8,161.78,6.1793]
[1748611649321,0.03928224,161.8,161.77,0.04000767]
[1748611650717,0.03928224,161.8,161.79,6.179]
[1748611651322,0.03928224,161.8,161.78,6.1792]
[1748611651524,0.03928224,161.8,161.77,0.04000767]
[1748611653133,6.1794,161.78,161.77,0.04000767]
[1748611655227,0.03928224,161.8,161.77,0.04000767]
[1748611655730,0.03928224,161.8,161.78,6.179]
[1748611655925,0.03928224,161.8,161.77,0.04000767]
[1748611656127,0.03928224,161.8,161.77,6.21960767]
[1748611657429,41.37298813,161.81,161.77,6.21960767]
[1748611658032,6.1787,161.8,161.77,6.21960767]
[1748611658232,35.19458813,161.81,161.77,6.21960767]
[1748611658532,41.41798393,161.81,161.77,6.21960767]
[1748611659235,41.41798393,161.81,161.78,6.1793]
[1748611659530,35.23958393,161.81,161.77,0.04000767]
[1748611659936,6.1787,161.8,161.77,0.04000767]
[1748611660228,35.23958393,161.81,161.77,0.04000767]
[1748611660429,6.1805,161.75,161.7,35.42]
[1748611660829,1.9849,161.8,161.73,6.181]
[1748611661027,6.1801,161.76,161.73,6.181]
[1748611661436,0.04455981,161.76,161.73,0.04190499]
[1748611662532,0.04455981,161.76,161.73,6.22300499]
[1748611662732,0.04455981,161.76,161.73,0.04190499]
[1748611664536,6.1807,161.75,161.73,0.04190499]
[1748611665131,6.1809,161.74,161.73,0.04190499]
[1748611665436,0.04455981,161.76,161.73,0.04190499]
[1748611665635,6.1808,161.75,161.73,0.04190499]
[1748611666435,0.04455981,161.76,161.73,0.04190499]
[1748611667139,6.1808,161.75,161.73,0.04190499]
[1748611668045,6.1809,161.74,161.73,0.04190499]
[1748611669235,0.04455981,161.76,161.69,6.1827]
[1748611669439,35.42,161.77,161.67,35.42]
[1748611669634,35.42,161.77,161.64,162.34]
[1748611669939,35.42,161.77,161.66,17.76843961]
[1748611670336,3.891e-05,161.73,161.72,6.1816]
[1748611670541,35.42,161.8,161.71,35.42]
[1748611670737,35.42,161.8,161.71,41.745]
[1748611671340,35.42,161.8,161.74,0.03921041]
[1748611671542,0.04034074,161.77,161.74,0.03921041]
[1748611673439,6.1804,161.76,161.74,0.03921041]
[1748611673747,0.04034074,161.77,161.74,0.03921041]
[1748611674046,6.22034074,161.77,161.74,6.21981041]
[1748611674841,6.1802,161.76,161.74,0.03921041]
[1748611677040,6.1805,161.75,161.74,0.03921041]
[1748611680151,6.1803,161.76,161.74,0.03921041]
[1748611680352,569.18,161.85,161.74,0.03921041]
[1748611680547,569.18,161.85,161.75,17.76843961]
[1748611680744,6.1777,161.83,161.75,17.76843961]
[1748611680951,35.42,161.85,161.74,4.1066]
[1748611681247,35.42,161.85,161.77,6.1795]
[1748611681444,0.04378326,161.82,161.79,0.04482498]
[1748611681860,6.1782,161.81,161.79,0.04482498]
[1748611682354,6.22178326,161.82,161.79,6.22372498]
[1748611682555,6.22178326,161.82,161.79,0.04482498]
[1748611682556,0.04378326,161.82,161.79,0.04482498]
[1748611683757,6.1782,161.81,161.79,0.04482498]
[1748611683955,0.04378326,161.82,161.79,0.04482498]
[1748611684455,6.1784,161.81,161.79,0.04482498]
[1748611684651,0.04378326,161.82,161.79,0.04482498]
[1748611684956,6.1786,161.8,161.79,0.04482498]
[1748611686246,6.1783,161.81,161.79,6.22382498]
[1748611686456,0.04378326,161.82,161.79,0.04482498]
[1748611686855,6.1765,161.86,161.79,0.04482498]
[1748611687052,35.42,161.87,161.79,0.04482498]
[1748611687545,35.42,161.87,161.81,6.1779]
[1748611687755,35.42,161.87,161.77,35.42]
[1748611687954,0.03947019,161.84,161.8,0.0402303]
[1748611688552,0.03947019,161.84,161.81,6.1782]
[1748611688854,0.03947019,161.84,161.8,0.0402303]
[1748611689054,0.03947019,161.84,161.82,6.1776]
[1748611689252,0.03947019,161.84,161.8,0.0402303]